[Event "Titled Tuesday Blitz April 19 Early 2022"]
[White "Omariev, Maksim"]
[Black "Fernandez Siles, Luis"]
[WhiteFideId "4193423"]
[BlackFideId "2209420"]
[WhiteElo "2480"]
[BlackElo "2212"]
[Result "1-0"]
[Round "08"]
[TimeControl "180+1"]
[Date "2022.04.19"]
[WhiteClock "0:00:30"]
[BlackClock "0:00:32"]

1. e4 {[%clk 0:03:00]}  c5 {[%clk 0:02:59]} 2. Nf3 {[%clk 0:03:01]}  Nc6 {[%clk 0:02:59]} 3. d4 {[%clk 0:03:01]}  cxd4 {[%clk 0:03:00]} 4. Nxd4 {[%clk 0:03:02]}  Nf6 {[%clk 0:03:00]} 5. Nc3 {[%clk 0:03:02]}  e5 {[%clk 0:03:00]} 6. Ndb5 {[%clk 0:03:02]}  d6 {[%clk 0:03:01]} 7. Bg5 {[%clk 0:03:02]}  a6 {[%clk 0:03:01]} 8. Na3 {[%clk 0:03:02]}  b5 {[%clk 0:03:02]} 9. Nd5 {[%clk 0:03:03]}  Be7 {[%clk 0:03:03]} 10. Bxf6 {[%clk 0:03:03]}  Bxf6 {[%clk 0:03:04]} 11. c4 {[%clk 0:03:04]}  b4 {[%clk 0:03:02]} 12. Nc2 {[%clk 0:03:04]}  a5 {[%clk 0:03:03]} 13. g3 {[%clk 0:03:03]}  Bg5 {[%clk 0:03:03]} 14. Bg2 {[%clk 0:03:03]}  O-O {[%clk 0:03:02]} 15. O-O {[%clk 0:03:03]}  Be6 {[%clk 0:02:59]} 16. b3 {[%clk 0:03:02]}  Nb8 {[%clk 0:02:37]} 17. f4 {[%clk 0:02:57]}  exf4 {[%clk 0:02:27]} 18. gxf4 {[%clk 0:02:58]}  Bh6 {[%clk 0:02:25]} 19. f5 {[%clk 0:01:48]}  Bxd5 {[%clk 0:02:21]} 20. Qxd5 {[%clk 0:01:49]}  Na6 {[%clk 0:02:05]} 21. Rad1 {[%clk 0:01:46]}  Qb6+ {[%clk 0:01:43]} 22. Kh1 {[%clk 0:01:46]}  Rad8 {[%clk 0:01:37]} 23. Nd4 {[%clk 0:01:46]}  Nc5 {[%clk 0:01:32]} 24. Nc6 {[%clk 0:01:11]}  Rd7 {[%clk 0:01:28]} 25. f6 {[%clk 0:01:12]}  gxf6 {[%clk 0:01:18]} 26. Bh3 {[%clk 0:01:11]}  Rc7 {[%clk 0:01:03]} 27. Nd4 {[%clk 0:01:11]}  Bg5 {[%clk 0:00:49]} 28. Nb5 {[%clk 0:01:04]}  Re7 {[%clk 0:00:47]} 29. Nxd6 {[%clk 0:01:01]}  Rd8 {[%clk 0:00:39]} 30. Nf5 {[%clk 0:00:33]}  Rxd5 {[%clk 0:00:34]} 31. Nxe7+ {[%clk 0:00:33]}  Kf8 {[%clk 0:00:34]} 32. Nxd5 {[%clk 0:00:32]}  Qe6 {[%clk 0:00:34]} 33. Bxe6 {[%clk 0:00:31]}  fxe6 {[%clk 0:00:33]} 34. Nxf6 {[%clk 0:00:31]}  Ke7 {[%clk 0:00:33]} 35. Nxh7 {[%clk 0:00:31]}  Be3 {[%clk 0:00:32]} 36. Nf6 {[%clk 0:00:30]} 1-0


[Site "https://www.chess.com"]

[Event "Titled Tuesday Blitz April 19 Early 2022"]
[White "Omelja, Artem"]
[Black "Stelmaszyk, Nico"]
[WhiteFideId "14119846"]
[BlackFideId "16200462"]
[WhiteElo "2382"]
[BlackElo "2119"]
[Result "1-0"]
[Round "08"]
[TimeControl "180+1"]
[Date "2022.04.19"]
[WhiteClock "0:00:29"]
[BlackClock "0:00:03"]

1. d4 {[%clk 0:03:00]}  d5 {[%clk 0:02:58]} 2. c4 {[%clk 0:03:01]}  e6 {[%clk 0:02:58]} 3. Nc3 {[%clk 0:03:00]}  c5 {[%clk 0:02:59]} 4. cxd5 {[%clk 0:03:00]}  exd5 {[%clk 0:02:59]} 5. Nf3 {[%clk 0:02:59]}  Nc6 {[%clk 0:03:00]} 6. Bg5 {[%clk 0:02:56]}  f6 {[%clk 0:02:39]} 7. Be3 {[%clk 0:02:44]}  c4 {[%clk 0:02:39]} 8. Bf4 {[%clk 0:02:42]}  Bb4 {[%clk 0:02:38]} 9. e3 {[%clk 0:02:41]}  Nge7 {[%clk 0:02:37]} 10. Be2 {[%clk 0:02:40]}  O-O {[%clk 0:02:37]} 11. O-O {[%clk 0:02:41]}  Bf5 {[%clk 0:02:34]} 12. Rc1 {[%clk 0:02:40]}  Ng6 {[%clk 0:02:33]} 13. Nxd5 {[%clk 0:02:33]}  b5 {[%clk 0:02:10]} 14. Nxb4 {[%clk 0:02:25]}  Nxb4 {[%clk 0:02:11]} 15. a3 {[%clk 0:02:25]}  Nxf4 {[%clk 0:02:10]} 16. exf4 {[%clk 0:02:21]}  Nd5 {[%clk 0:02:07]} 17. g3 {[%clk 0:02:18]}  Re8 {[%clk 0:01:57]} 18. Nh4 {[%clk 0:02:15]}  Be4 {[%clk 0:01:51]} 19. Bf3 {[%clk 0:02:14]}  Bd3 {[%clk 0:01:40]} 20. Re1 {[%clk 0:02:12]}  Qd6 {[%clk 0:01:37]} 21. Qd2 {[%clk 0:02:03]}  Rad8 {[%clk 0:01:35]} 22. Ng2 {[%clk 0:01:45]}  Nb6 {[%clk 0:01:28]} 23. Qa5 {[%clk 0:01:34]}  Qd7 {[%clk 0:00:44]} 24. Ne3 {[%clk 0:01:21]}  Re7 {[%clk 0:00:33]} 25. d5 {[%clk 0:01:14]}  Rde8 {[%clk 0:00:31]} 26. Red1 {[%clk 0:01:07]}  Kh8 {[%clk 0:00:23]} 27. Qb4 {[%clk 0:01:01]}  a6 {[%clk 0:00:21]} 28. b3 {[%clk 0:00:56]}  Rc8 {[%clk 0:00:17]} 29. bxc4 {[%clk 0:00:54]}  Bxc4 {[%clk 0:00:18]} 30. a4 {[%clk 0:00:39]}  Ree8 {[%clk 0:00:17]} 31. a5 {[%clk 0:00:36]}  Nxd5 {[%clk 0:00:06]} 32. Nxd5 {[%clk 0:00:36]}  Bxd5 {[%clk 0:00:05]} 33. Rxc8 {[%clk 0:00:33]}  Qxc8 {[%clk 0:00:02]} 34. Bxd5 {[%clk 0:00:30]}  Qc2 {[%clk 0:00:03]} 35. Qd2 {[%clk 0:00:29]} 1-0


[Site "https://www.chess.com"]

[Event "Titled Tuesday Blitz April 19 Early 2022"]
[White "Oparin, Grigoriy"]
[Black "Grischuk, Alexander"]
[WhiteFideId "24125890"]
[BlackFideId "4126025"]
[WhiteElo "2665"]
[BlackElo "2762"]
[Result "1-0"]
[Round "08"]
[TimeControl "180+1"]
[Date "2022.04.19"]
[WhiteClock "0:00:58"]
[BlackClock "0:00:01"]

1. d4 {[%clk 0:03:00]}  Nf6 {[%clk 0:03:00]} 2. c4 {[%clk 0:03:01]}  e6 {[%clk 0:03:00]} 3. Nf3 {[%clk 0:03:02]}  d5 {[%clk 0:03:00]} 4. g3 {[%clk 0:03:02]}  Bb4+ {[%clk 0:03:00]} 5. Nbd2 {[%clk 0:03:00]}  dxc4 {[%clk 0:02:55]} 6. Bg2 {[%clk 0:03:00]}  b5 {[%clk 0:02:54]} 7. O-O {[%clk 0:02:55]}  O-O {[%clk 0:02:44]} 8. a4 {[%clk 0:02:55]}  c6 {[%clk 0:02:44]} 9. Ne1 {[%clk 0:02:55]}  Nd5 {[%clk 0:02:38]} 10. Nc2 {[%clk 0:02:51]}  Be7 {[%clk 0:02:34]} 11. e4 {[%clk 0:02:49]}  Nb6 {[%clk 0:02:30]} 12. e5 {[%clk 0:02:40]}  Nd5 {[%clk 0:02:20]} 13. Ne4 {[%clk 0:02:40]}  Nd7 {[%clk 0:02:16]} 14. Qh5 {[%clk 0:02:21]}  f5 {[%clk 0:02:03]} 15. axb5 {[%clk 0:01:57]}  cxb5 {[%clk 0:01:44]} 16. Nc3 {[%clk 0:01:57]}  N7b6 {[%clk 0:01:40]} 17. Nxb5 {[%clk 0:01:52]}  Qd7 {[%clk 0:01:33]} 18. Nc3 {[%clk 0:01:48]}  Bb7 {[%clk 0:01:34]} 19. Qe2 {[%clk 0:01:42]}  a5 {[%clk 0:01:21]} 20. Ne3 {[%clk 0:01:38]}  Nxc3 {[%clk 0:00:48]} 21. bxc3 {[%clk 0:01:39]}  Bxg2 {[%clk 0:00:48]} 22. Kxg2 {[%clk 0:01:39]}  f4 {[%clk 0:00:46]} 23. gxf4 {[%clk 0:01:37]}  a4 {[%clk 0:00:31]} 24. f5 {[%clk 0:01:30]}  exf5 {[%clk 0:00:30]} 25. f4 {[%clk 0:01:30]}  a3 {[%clk 0:00:28]} 26. Qf3 {[%clk 0:01:24]}  Ra5 {[%clk 0:00:27]} 27. Rd1 {[%clk 0:01:17]}  Qa4 {[%clk 0:00:06]} 28. d5 {[%clk 0:01:15]}  Bc5 {[%clk 0:00:07]} 29. d6 {[%clk 0:01:10]}  Qd7 {[%clk 0:00:04]} 30. Nd5 {[%clk 0:01:05]}  Kh8 {[%clk 0:00:02]} 31. Nxb6 {[%clk 0:01:00]}  Bxb6 {[%clk 0:00:03]} 32. Rxa3 {[%clk 0:01:00]}  Rxa3 {[%clk 0:00:02]} 33. Bxa3 {[%clk 0:01:01]}  Qe6 {[%clk 0:00:01]} 34. d7 {[%clk 0:00:58]}  Rd8 {[%clk 0:00:01]} 35. Rd6 {[%clk 0:00:58]} 1-0


[Site "https://www.chess.com"]

[Event "Titled Tuesday Blitz April 19 Early 2022"]
[White "Palachev, Petr"]
[Black "Sharafiev, Azat"]
[WhiteFideId "24129003"]
[BlackFideId "4186214"]
[WhiteElo "2339"]
[BlackElo "2299"]
[Result "1-0"]
[Round "08"]
[TimeControl "180+1"]
[Date "2022.04.19"]
[WhiteClock "0:00:20"]
[BlackClock "0:00:04"]

1. d4 {[%clk 0:03:00]}  Nf6 {[%clk 0:02:55]} 2. Nf3 {[%clk 0:03:00]}  d5 {[%clk 0:02:54]} 3. Bf4 {[%clk 0:02:59]}  Bf5 {[%clk 0:02:48]} 4. e3 {[%clk 0:02:59]}  c6 {[%clk 0:02:40]} 5. c4 {[%clk 0:02:57]}  Qb6 {[%clk 0:02:39]} 6. Qc1 {[%clk 0:02:41]}  Nbd7 {[%clk 0:02:34]} 7. Nc3 {[%clk 0:02:39]}  e6 {[%clk 0:02:34]} 8. c5 {[%clk 0:02:36]}  Qd8 {[%clk 0:02:30]} 9. b4 {[%clk 0:02:36]}  Be7 {[%clk 0:02:27]} 10. h3 {[%clk 0:02:36]}  O-O {[%clk 0:02:23]} 11. Be2 {[%clk 0:02:36]}  Ne4 {[%clk 0:02:20]} 12. O-O {[%clk 0:02:34]}  Nxc3 {[%clk 0:02:12]} 13. Qxc3 {[%clk 0:02:35]}  Bf6 {[%clk 0:02:12]} 14. Bd6 {[%clk 0:02:26]}  Re8 {[%clk 0:02:11]} 15. Ne5 {[%clk 0:02:27]}  Be7 {[%clk 0:02:08]} 16. b5 {[%clk 0:01:57]}  Bxd6 {[%clk 0:01:32]} 17. cxd6 {[%clk 0:01:57]}  Nb6 {[%clk 0:00:46]} 18. bxc6 {[%clk 0:01:40]}  bxc6 {[%clk 0:00:46]} 19. Qb4 {[%clk 0:01:09]}  a5 {[%clk 0:00:25]} 20. Qc5 {[%clk 0:01:09]}  Rc8 {[%clk 0:00:16]} 21. Ba6 {[%clk 0:00:54]}  Nd7 {[%clk 0:00:13]} 22. Nxd7 {[%clk 0:00:52]}  Qxd7 {[%clk 0:00:14]} 23. Bxc8 {[%clk 0:00:53]}  Rxc8 {[%clk 0:00:14]} 24. Rfc1 {[%clk 0:00:52]}  a4 {[%clk 0:00:14]} 25. a3 {[%clk 0:00:52]}  g5 {[%clk 0:00:12]} 26. Ra2 {[%clk 0:00:51]}  h5 {[%clk 0:00:11]} 27. Rb2 {[%clk 0:00:51]}  g4 {[%clk 0:00:11]} 28. h4 {[%clk 0:00:51]}  Kg7 {[%clk 0:00:10]} 29. Rb6 {[%clk 0:00:50]}  Qd8 {[%clk 0:00:04]} 30. Rxc6 {[%clk 0:00:48]}  Rb8 {[%clk 0:00:04]} 31. Rc8 {[%clk 0:00:45]}  Rxc8 {[%clk 0:00:04]} 32. Qxc8 {[%clk 0:00:46]}  Qxd6 {[%clk 0:00:05]} 33. Qc5 {[%clk 0:00:34]}  Qa6 {[%clk 0:00:05]} 34. Qe7 {[%clk 0:00:19]}  Qe2 {[%clk 0:00:04]} 35. Qg5+ {[%clk 0:00:19]}  Bg6 {[%clk 0:00:04]} 36. Qe5+ {[%clk 0:00:20]} 1-0


[Site "https://www.chess.com"]

[Event "Titled Tuesday Blitz April 19 Early 2022"]
[White "Papp, Levente"]
[Black "Molina, Roberto Junio Brito"]
[WhiteFideId "751243"]
[BlackFideId "2109450"]
[WhiteElo "2308"]
[BlackElo "2432"]
[Result "1-0"]
[Round "08"]
[TimeControl "180+1"]
[Date "2022.04.19"]
[WhiteClock "0:00:14"]
[BlackClock "0:00:44"]

1. c4 {[%clk 0:03:00]}  c6 {[%clk 0:02:59]} 2. e4 {[%clk 0:03:00]}  d5 {[%clk 0:03:00]} 3. exd5 {[%clk 0:03:01]}  cxd5 {[%clk 0:03:00]} 4. cxd5 {[%clk 0:03:02]}  Nf6 {[%clk 0:03:00]} 5. Nc3 {[%clk 0:03:03]}  Nxd5 {[%clk 0:03:00]} 6. Nf3 {[%clk 0:03:03]}  e6 {[%clk 0:02:59]} 7. d4 {[%clk 0:03:03]}  Be7 {[%clk 0:03:00]} 8. Bd3 {[%clk 0:03:03]}  Nc6 {[%clk 0:02:59]} 9. O-O {[%clk 0:03:03]}  O-O {[%clk 0:02:59]} 10. a3 {[%clk 0:03:03]}  Nf6 {[%clk 0:02:59]} 11. Bc2 {[%clk 0:03:02]}  b6 {[%clk 0:03:00]} 12. Qd3 {[%clk 0:02:56]}  Bb7 {[%clk 0:02:59]} 13. Bg5 {[%clk 0:02:55]}  g6 {[%clk 0:02:59]} 14. Rad1 {[%clk 0:02:52]}  Nd5 {[%clk 0:02:58]} 15. h4 {[%clk 0:02:41]}  Rc8 {[%clk 0:02:54]} 16. Nxd5 {[%clk 0:02:28]}  Qxd5 {[%clk 0:02:52]} 17. Bb3 {[%clk 0:02:27]}  Qd8 {[%clk 0:02:51]} 18. d5 {[%clk 0:02:24]}  exd5 {[%clk 0:02:39]} 19. Bxd5 {[%clk 0:02:23]}  Bxg5 {[%clk 0:02:39]} 20. hxg5 {[%clk 0:02:20]}  Qc7 {[%clk 0:02:27]} 21. Qe4 {[%clk 0:01:47]}  Na5 {[%clk 0:02:22]} 22. Bxb7 {[%clk 0:01:36]}  Nxb7 {[%clk 0:02:22]} 23. b4 {[%clk 0:01:33]}  Rfe8 {[%clk 0:02:21]} 24. Qh4 {[%clk 0:01:31]}  Nd6 {[%clk 0:02:20]} 25. Qf4 {[%clk 0:01:21]}  Nf5 {[%clk 0:02:03]} 26. Qxc7 {[%clk 0:01:20]}  Rxc7 {[%clk 0:02:04]} 27. g4 {[%clk 0:01:21]}  Ng7 {[%clk 0:02:02]} 28. Nd4 {[%clk 0:01:17]}  Rc4 {[%clk 0:01:56]} 29. f3 {[%clk 0:01:12]}  a5 {[%clk 0:01:49]} 30. b5 {[%clk 0:01:10]}  Ne6 {[%clk 0:01:31]} 31. Rfe1 {[%clk 0:01:05]}  Rc5 {[%clk 0:01:30]} 32. f4 {[%clk 0:01:00]}  Kf8 {[%clk 0:01:26]} 33. Nxe6+ {[%clk 0:00:59]}  Rxe6 {[%clk 0:01:27]} 34. Rxe6 {[%clk 0:00:58]}  fxe6 {[%clk 0:01:27]} 35. Rd7 {[%clk 0:00:36]}  Rxb5 {[%clk 0:01:21]} 36. Rxh7 {[%clk 0:00:36]}  Rb3 {[%clk 0:01:20]} 37. Rh8+ {[%clk 0:00:32]}  Ke7 {[%clk 0:01:19]} 38. Rh7+ {[%clk 0:00:30]}  Kd6 {[%clk 0:01:19]} 39. Rg7 {[%clk 0:00:30]}  Rf3 {[%clk 0:01:10]} 40. Kg2 {[%clk 0:00:21]}  Rxf4 {[%clk 0:01:09]} 41. Kg3 {[%clk 0:00:21]}  Ra4 {[%clk 0:01:09]} 42. Rxg6 {[%clk 0:00:22]}  Rxa3+ {[%clk 0:01:09]} 43. Kh4 {[%clk 0:00:20]}  b5 {[%clk 0:01:06]} 44. Rg8 {[%clk 0:00:20]}  Ra1 {[%clk 0:01:06]} 45. g6 {[%clk 0:00:20]}  Ke7 {[%clk 0:01:03]} 46. Kg5 {[%clk 0:00:20]}  b4 {[%clk 0:00:53]} 47. Rb8 {[%clk 0:00:20]}  b3 {[%clk 0:00:45]} 48. g7 {[%clk 0:00:20]}  b2 {[%clk 0:00:45]} 49. Rxb2 {[%clk 0:00:14]}  Kf7 {[%clk 0:00:44]} 50. Rb7+ {[%clk 0:00:14]}  Kg8 {[%clk 0:00:44]} 51. Kg6 {[%clk 0:00:14]} 1-0


[Site "https://www.chess.com"]

[Event "Titled Tuesday Blitz April 19 Early 2022"]
[White "Papp, Petra"]
[Black "Zemlyanskii, Ivan"]
[WhiteFideId "739049"]
[BlackFideId "24249971"]
[WhiteElo "2259"]
[BlackElo "1759"]
[Result "0-1"]
[Round "08"]
[TimeControl "180+1"]
[Date "2022.04.19"]
[WhiteClock "0:00:01"]
[BlackClock "0:00:19"]

1. e4 {[%clk 0:03:00]}  c5 {[%clk 0:02:58]} 2. Nf3 {[%clk 0:03:00]}  d6 {[%clk 0:02:58]} 3. d4 {[%clk 0:02:54]}  cxd4 {[%clk 0:02:58]} 4. Nxd4 {[%clk 0:02:55]}  Nf6 {[%clk 0:02:58]} 5. Nc3 {[%clk 0:02:55]}  a6 {[%clk 0:02:58]} 6. Bg5 {[%clk 0:02:54]}  Nbd7 {[%clk 0:02:58]} 7. Bc4 {[%clk 0:02:53]}  Qb6 {[%clk 0:02:55]} 8. Bb3 {[%clk 0:02:51]}  e6 {[%clk 0:02:53]} 9. Qd2 {[%clk 0:02:47]}  Be7 {[%clk 0:02:46]} 10. O-O-O {[%clk 0:02:44]}  Nc5 {[%clk 0:02:45]} 11. f3 {[%clk 0:02:43]}  Qc7 {[%clk 0:02:39]} 12. Be3 {[%clk 0:02:42]}  b5 {[%clk 0:02:25]} 13. g4 {[%clk 0:02:41]}  Bb7 {[%clk 0:02:24]} 14. h4 {[%clk 0:02:38]}  Nfd7 {[%clk 0:01:58]} 15. Kb1 {[%clk 0:02:33]}  Ne5 {[%clk 0:01:57]} 16. h5 {[%clk 0:02:25]}  b4 {[%clk 0:01:29]} 17. Na4 {[%clk 0:01:47]}  Rb8 {[%clk 0:01:28]} 18. g5 {[%clk 0:01:36]}  Nxb3 {[%clk 0:01:16]} 19. cxb3 {[%clk 0:01:29]}  d5 {[%clk 0:01:16]} 20. g6 {[%clk 0:01:24]}  hxg6 {[%clk 0:01:02]} 21. hxg6 {[%clk 0:01:21]}  Nxg6 {[%clk 0:01:01]} 22. Rxh8+ {[%clk 0:01:06]}  Nxh8 {[%clk 0:01:01]} 23. e5 {[%clk 0:00:34]}  Ng6 {[%clk 0:00:58]} 24. f4 {[%clk 0:00:34]}  Rc8 {[%clk 0:00:53]} 25. Qh2 {[%clk 0:00:22]}  Bc6 {[%clk 0:00:42]} 26. Rc1 {[%clk 0:00:18]}  Qb7 {[%clk 0:00:41]} 27. Rg1 {[%clk 0:00:04]}  Bb5 {[%clk 0:00:35]} 28. Qh7 {[%clk 0:00:03]}  Bd3+ {[%clk 0:00:33]} 29. Ka1 {[%clk 0:00:03]}  Bf8 {[%clk 0:00:32]} 30. f5 {[%clk 0:00:02]}  Nxe5 {[%clk 0:00:30]} 31. Qg8 {[%clk 0:00:01]}  exf5 {[%clk 0:00:23]} 32. Bf4 {[%clk 0:00:01]}  Qe7 {[%clk 0:00:20]} 33. Re1 {[%clk 0:00:01]}  Be4 {[%clk 0:00:20]} 34. Nb6 {[%clk 0:00:01]}  Rd8 {[%clk 0:00:19]} 0-1


[Site "https://www.chess.com"]

[Event "Titled Tuesday Blitz April 19 Early 2022"]
[White "Petrova, Irina"]
[Black "Alimpic, Aleksa"]
[WhiteFideId "14124122"]
[BlackFideId "974323"]
[WhiteElo "1993"]
[BlackElo "2169"]
[Result "1/2-1/2"]
[Round "08"]
[TimeControl "180+1"]
[Date "2022.04.19"]
[WhiteClock "0:00:03"]
[BlackClock "0:00:06"]

1. e4 {[%clk 0:03:00]}  g6 {[%clk 0:02:54]} 2. d4 {[%clk 0:03:00]}  Bg7 {[%clk 0:02:55]} 3. Nc3 {[%clk 0:03:00]}  c6 {[%clk 0:02:55]} 4. Be3 {[%clk 0:02:58]}  d5 {[%clk 0:02:54]} 5. e5 {[%clk 0:02:58]}  b6 {[%clk 0:02:42]} 6. Qd2 {[%clk 0:02:56]}  Ba6 {[%clk 0:02:40]} 7. Bxa6 {[%clk 0:02:53]}  Nxa6 {[%clk 0:02:41]} 8. f4 {[%clk 0:02:51]}  e6 {[%clk 0:02:39]} 9. Nf3 {[%clk 0:02:51]}  h5 {[%clk 0:02:37]} 10. O-O {[%clk 0:02:48]}  Nh6 {[%clk 0:02:36]} 11. Bf2 {[%clk 0:02:29]}  Nf5 {[%clk 0:02:35]} 12. Rad1 {[%clk 0:02:25]}  Bf8 {[%clk 0:02:34]} 13. Ne2 {[%clk 0:02:18]}  Nb8 {[%clk 0:02:24]} 14. Ng3 {[%clk 0:02:15]}  Be7 {[%clk 0:02:18]} 15. Nxf5 {[%clk 0:02:14]}  gxf5 {[%clk 0:02:19]} 16. b3 {[%clk 0:02:06]}  a5 {[%clk 0:02:16]} 17. c4 {[%clk 0:02:05]}  Nd7 {[%clk 0:01:53]} 18. cxd5 {[%clk 0:01:57]}  cxd5 {[%clk 0:01:54]} 19. Rc1 {[%clk 0:01:55]}  Kf8 {[%clk 0:01:44]} 20. Qe2 {[%clk 0:01:50]}  Ba3 {[%clk 0:01:35]} 21. Bh4 {[%clk 0:01:38]}  Be7 {[%clk 0:01:31]} 22. Bxe7+ {[%clk 0:01:36]}  Qxe7 {[%clk 0:01:32]} 23. Rc6 {[%clk 0:01:34]}  Kg7 {[%clk 0:01:25]} 24. Rfc1 {[%clk 0:01:34]}  a4 {[%clk 0:01:15]} 25. Ng5 {[%clk 0:01:29]}  axb3 {[%clk 0:01:06]} 26. axb3 {[%clk 0:01:30]}  Ra3 {[%clk 0:00:33]} 27. Qe3 {[%clk 0:01:19]}  h4 {[%clk 0:00:30]} 28. Rc7 {[%clk 0:01:12]}  Ra2 {[%clk 0:00:19]} 29. Qc3 {[%clk 0:01:07]}  Rd8 {[%clk 0:00:08]} 30. Qe1 {[%clk 0:01:00]}  Rh8 {[%clk 0:00:07]} 31. Qc3 {[%clk 0:00:40]}  Rd8 {[%clk 0:00:04]} 32. Kh1 {[%clk 0:00:32]}  Qa3 {[%clk 0:00:04]} 33. h3 {[%clk 0:00:28]}  Qb2 {[%clk 0:00:04]} 34. Qxb2 {[%clk 0:00:18]}  Rxb2 {[%clk 0:00:04]} 35. R1c3 {[%clk 0:00:14]}  Kf8 {[%clk 0:00:04]} 36. Nf3 {[%clk 0:00:13]}  Ke7 {[%clk 0:00:04]} 37. Nxh4 {[%clk 0:00:12]}  Ra8 {[%clk 0:00:05]} 38. Rc2 {[%clk 0:00:11]}  Ra1+ {[%clk 0:00:05]} 39. Kh2 {[%clk 0:00:11]}  Rxb3 {[%clk 0:00:05]} 40. Nf3 {[%clk 0:00:07]}  Rd1 {[%clk 0:00:04]} 41. h4 {[%clk 0:00:06]}  Ra3 {[%clk 0:00:02]} 42. Rc1 {[%clk 0:00:04]}  Rdd3 {[%clk 0:00:01]} 43. h5 {[%clk 0:00:04]}  Re3 {[%clk 0:00:01]} 44. h6 {[%clk 0:00:03]}  Ra8 {[%clk 0:00:02]} 45. Kg3 {[%clk 0:00:03]}  Rh8 {[%clk 0:00:02]} 46. Rh1 {[%clk 0:00:03]}  Re2 {[%clk 0:00:02]} 47. h7 {[%clk 0:00:03]}  Rd2 {[%clk 0:00:01]} 48. Ng5 {[%clk 0:00:03]}  Re2 {[%clk 0:00:02]} 49. Kf3 {[%clk 0:00:03]}  Ra2 {[%clk 0:00:02]} 50. Nxf7 {[%clk 0:00:03]}  Ra3+ {[%clk 0:00:02]} 51. Kf2 {[%clk 0:00:01]}  Ra2+ {[%clk 0:00:03]} 52. Kg3 {[%clk 0:00:02]}  Ra3+ {[%clk 0:00:03]} 53. Kf2 {[%clk 0:00:02]}  Kxf7 {[%clk 0:00:04]} 54. Rxd7+ {[%clk 0:00:02]}  Kg6 {[%clk 0:00:04]} 55. Rd6 {[%clk 0:00:02]}  Ra2+ {[%clk 0:00:05]} 56. Kf3 {[%clk 0:00:02]}  Ra3+ {[%clk 0:00:05]} 57. Kf2 {[%clk 0:00:02]}  Ra2+ {[%clk 0:00:06]} 58. Kf3 {[%clk 0:00:02]}  Ra3+ {[%clk 0:00:06]} 59. Kf2 {[%clk 0:00:03]} 1/2-1/2


[Site "https://www.chess.com"]

[Event "Titled Tuesday Blitz April 19 Early 2022"]
[White "Pham, Tran Gia Phuc"]
[Black "Jakubowski, Krzysztof"]
[WhiteFideId "12415669"]
[BlackFideId "1112848"]
[WhiteElo "2175"]
[BlackElo "2642"]
[Result "0-1"]
[Round "08"]
[TimeControl "180+1"]
[Date "2022.04.19"]
[WhiteClock "0:00:33"]
[BlackClock "0:00:24"]

1. e4 {[%clk 0:03:00]}  c5 {[%clk 0:02:58]} 2. Nc3 {[%clk 0:03:00]}  e6 {[%clk 0:02:57]} 3. d4 {[%clk 0:03:00]}  cxd4 {[%clk 0:02:56]} 4. Qxd4 {[%clk 0:03:00]}  Nc6 {[%clk 0:02:56]} 5. Qd2 {[%clk 0:03:00]}  a6 {[%clk 0:02:56]} 6. b3 {[%clk 0:03:00]}  b5 {[%clk 0:02:55]} 7. Bb2 {[%clk 0:03:00]}  Bb7 {[%clk 0:02:53]} 8. O-O-O {[%clk 0:02:59]}  Rc8 {[%clk 0:02:52]} 9. Kb1 {[%clk 0:02:59]}  Nf6 {[%clk 0:02:48]} 10. f3 {[%clk 0:02:58]}  Bc5 {[%clk 0:02:29]} 11. Nh3 {[%clk 0:02:57]}  O-O {[%clk 0:02:27]} 12. g4 {[%clk 0:02:51]}  d6 {[%clk 0:02:25]} 13. Nf4 {[%clk 0:02:47]}  Qb6 {[%clk 0:02:22]} 14. Qg2 {[%clk 0:02:44]}  Ne5 {[%clk 0:02:17]} 15. Nh5 {[%clk 0:02:42]}  Bb4 {[%clk 0:02:03]} 16. Ne2 {[%clk 0:02:37]}  Nfd7 {[%clk 0:01:46]} 17. f4 {[%clk 0:02:23]}  Qe3 {[%clk 0:01:45]} 18. Neg3 {[%clk 0:02:11]}  Nf3 {[%clk 0:01:28]} 19. Bd3 {[%clk 0:01:59]}  Nd2+ {[%clk 0:01:09]} 20. Ka1 {[%clk 0:01:58]}  g6 {[%clk 0:01:05]} 21. Rhe1 {[%clk 0:01:18]}  Nxb3+ {[%clk 0:01:00]} 22. axb3 {[%clk 0:01:18]}  Bxe1 {[%clk 0:01:00]} 23. Nf1 {[%clk 0:01:18]}  Qb6 {[%clk 0:00:56]} 24. Kb1 {[%clk 0:01:08]}  Qa5 {[%clk 0:00:54]} 25. Rxe1 {[%clk 0:00:45]}  Qxe1+ {[%clk 0:00:52]} 26. Ka2 {[%clk 0:00:45]}  Rc5 {[%clk 0:00:26]} 27. Nf6+ {[%clk 0:00:33]}  Nxf6 {[%clk 0:00:25]} 28. Bxf6 {[%clk 0:00:33]}  b4 {[%clk 0:00:24]} 0-1


[Site "https://www.chess.com"]

[Event "Titled Tuesday Blitz April 19 Early 2022"]
[White "Piesik, Piotr"]
[Black "Babazada, Khazar"]
[WhiteFideId "1136194"]
[BlackFideId "13413554"]
[WhiteElo "2190"]
[BlackElo "2406"]
[Result "1-0"]
[Round "08"]
[TimeControl "180+1"]
[Date "2022.04.19"]
[WhiteClock "0:00:24"]
[BlackClock "0:01:33"]

1. Nf3 {[%clk 0:02:44]}  g5 {[%clk 0:02:56]} 2. Nxg5 {[%clk 0:02:43]}  e5 {[%clk 0:02:57]} 3. d4 {[%clk 0:02:42]}  h6 {[%clk 0:02:56]} 4. Ne4 {[%clk 0:02:39]}  d5 {[%clk 0:02:53]} 5. Ng3 {[%clk 0:02:39]}  e4 {[%clk 0:02:47]} 6. Bf4 {[%clk 0:02:38]}  Bd6 {[%clk 0:02:43]} 7. Bxd6 {[%clk 0:02:37]}  Qxd6 {[%clk 0:02:44]} 8. Qd2 {[%clk 0:02:34]}  h5 {[%clk 0:02:42]} 9. e3 {[%clk 0:02:32]}  h4 {[%clk 0:02:42]} 10. Ne2 {[%clk 0:02:33]}  h3 {[%clk 0:02:42]} 11. Nf4 {[%clk 0:02:31]}  hxg2 {[%clk 0:02:40]} 12. Bxg2 {[%clk 0:02:32]}  c6 {[%clk 0:02:38]} 13. c4 {[%clk 0:02:31]}  Ne7 {[%clk 0:02:38]} 14. Nc3 {[%clk 0:02:30]}  Na6 {[%clk 0:02:36]} 15. cxd5 {[%clk 0:02:28]}  cxd5 {[%clk 0:02:37]} 16. a3 {[%clk 0:02:26]}  Bd7 {[%clk 0:02:37]} 17. h4 {[%clk 0:02:16]}  O-O-O {[%clk 0:02:35]} 18. h5 {[%clk 0:02:10]}  Kb8 {[%clk 0:02:33]} 19. O-O-O {[%clk 0:02:08]}  b5 {[%clk 0:02:25]} 20. Na2 {[%clk 0:02:07]}  Nc6 {[%clk 0:02:20]} 21. Kb1 {[%clk 0:02:03]}  b4 {[%clk 0:02:21]} 22. axb4 {[%clk 0:02:03]}  Ncxb4 {[%clk 0:02:18]} 23. Nxb4 {[%clk 0:02:03]}  Nxb4 {[%clk 0:02:18]} 24. Rc1 {[%clk 0:02:03]}  Ka8 {[%clk 0:02:09]} 25. Rc5 {[%clk 0:02:01]}  Rb8 {[%clk 0:02:10]} 26. Nxd5 {[%clk 0:01:48]}  Nxd5 {[%clk 0:02:10]} 27. Bxe4 {[%clk 0:01:48]}  Be6 {[%clk 0:02:10]} 28. Qa5 {[%clk 0:01:39]}  Rhd8 {[%clk 0:02:07]} 29. h6 {[%clk 0:01:39]}  f5 {[%clk 0:02:03]} 30. Bf3 {[%clk 0:01:33]}  Qb6 {[%clk 0:01:54]} 31. Qxb6 {[%clk 0:00:43]}  axb6 {[%clk 0:01:55]} 32. Rc6 {[%clk 0:00:44]}  Bf7 {[%clk 0:01:55]} 33. Rf6 {[%clk 0:00:42]}  Rb7 {[%clk 0:01:47]} 34. Rxf7 {[%clk 0:00:19]}  Rxf7 {[%clk 0:01:44]} 35. Bxd5+ {[%clk 0:00:20]}  Rxd5 {[%clk 0:01:41]} 36. h7 {[%clk 0:00:21]}  Rd8 {[%clk 0:01:39]} 37. h8=Q {[%clk 0:00:21]}  Rxh8 {[%clk 0:01:39]} 38. Rxh8+ {[%clk 0:00:21]}  Kb7 {[%clk 0:01:37]} 39. Rh6 {[%clk 0:00:22]}  f4 {[%clk 0:01:35]} 40. Kc2 {[%clk 0:00:22]}  fxe3 {[%clk 0:01:33]} 41. fxe3 {[%clk 0:00:23]}  Rf2+ {[%clk 0:01:33]} 42. Kc3 {[%clk 0:00:23]}  Re2 {[%clk 0:01:33]} 43. Re6 {[%clk 0:00:24]} 1-0


[Site "https://www.chess.com"]